[Event "*** Titled Tuesday Blitz"]
[Site "Chess.com"]
[Date "2020.05.19"]
[Round "10"]
[White "MathiasWomacka"]
[Black "FeketeBarika"]
[Result "1-0"]
[WhiteElo "2366"]
[BlackElo "2257"]
[TimeControl "180+1"]
[EndTime "13:55:50 PDT"]
[Termination "MathiasWomacka won by resignation"]

1. e4 {[%clk 0:03:00.9]} 1... e6 {[%clk 0:02:59.4]} 2. d4 {[%clk 0:02:58.9]}
2... d5 {[%clk 0:02:59.3]} 3. Nd2 {[%clk 0:02:58.8]} 3... Be7 {[%clk 0:02:58.7]}
4. Ngf3 {[%clk 0:02:57.7]} 4... Nf6 {[%clk 0:02:57.8]} 5. e5 {[%clk 0:02:57.8]}
5... Nfd7 {[%clk 0:02:58.2]} 6. Bd3 {[%clk 0:02:57.8]} 6... c5 {[%clk
0:02:58.5]} 7. c3 {[%clk 0:02:58.3]} 7... b6 {[%clk 0:02:58.4]} 8. O-O {[%clk
0:02:56.4]} 8... Ba6 {[%clk 0:02:58.2]} 9. Bxa6 {[%clk 0:02:56.1]} 9... Nxa6
{[%clk 0:02:59.1]} 10. Re1 {[%clk 0:02:52.3]} 10... O-O {[%clk 0:02:58.4]} 11.
Nf1 {[%clk 0:02:49.5]} 11... Nab8 {[%clk 0:02:57.7]} 12. a3 {[%clk 0:02:34.1]}
12... Nc6 {[%clk 0:02:56.6]} 13. b4 {[%clk 0:02:34.1]} 13... cxd4 {[%clk
0:02:56.3]} 14. cxd4 {[%clk 0:02:31.1]} 14... Rc8 {[%clk 0:02:49.2]} 15. Be3
{[%clk 0:02:27.8]} 15... a5 {[%clk 0:02:38.8]} 16. b5 {[%clk 0:02:21.9]} 16...
Na7 {[%clk 0:02:38.5]} 17. a4 {[%clk 0:02:21.7]} 17... Rc4 {[%clk 0:02:38]} 18.
N1d2 {[%clk 0:02:11.1]} 18... Rc7 {[%clk 0:02:28]} 19. Qe2 {[%clk 0:02:10.1]}
19... Bb4 {[%clk 0:02:24.2]} 20. Rec1 {[%clk 0:02:03]} 20... Rxc1+ {[%clk
0:02:18.8]} 21. Rxc1 {[%clk 0:02:02]} 21... Qb8 {[%clk 0:02:18.3]} 22. Ng5
{[%clk 0:01:39.5]} 22... h6 {[%clk 0:02:16.2]} 23. Nh3 {[%clk 0:01:39]} 23...
Rc8 {[%clk 0:02:15.7]} 24. Rd1 {[%clk 0:01:31.5]} 24... Rc2 {[%clk 0:02:13.7]}
25. Qg4 {[%clk 0:01:30.7]} 25... Qc8 {[%clk 0:02:09.3]} 26. Bxh6 {[%clk
0:01:26.5]} 26... g6 {[%clk 0:01:51.4]} 27. Nf3 {[%clk 0:01:20.2]} 27... Qc3
{[%clk 0:01:38.5]} 28. Rf1 {[%clk 0:01:15.5]} 28... Nc8 {[%clk 0:01:33.9]} 29.
Nf4 {[%clk 0:01:11.2]} 29... Ne7 {[%clk 0:01:01]} 30. Nxe6 {[%clk 0:01:09.3]}
30... fxe6 {[%clk 0:00:58.7]} 31. Qxe6+ {[%clk 0:01:08.9]} 31... Kh7 {[%clk
0:00:58.7]} 32. Be3 {[%clk 0:00:58.6]} 32... Qc8 {[%clk 0:00:44.6]} 33. Ng5+
{[%clk 0:00:55.8]} 33... Kh8 {[%clk 0:00:37.4]} 34. Qh3+ {[%clk 0:00:50.2]}
34... Kg8 {[%clk 0:00:34.3]} 35. Qh7+ {[%clk 0:00:49.2]} 35... Kf8 {[%clk
0:00:33.9]} 1-0

[Event "*** Titled Tuesday Blitz"]
[Site "Chess.com"]
[Date "2020.05.19"]
[Round "10"]
[White "Bad4life"]
[Black "Quiet_Desperation"]
[Result "0-1"]
[WhiteElo "2272"]
[BlackElo "2103"]
[TimeControl "180+1"]
[EndTime "13:55:52 PDT"]
[Termination "Quiet_Desperation won by resignation"]

1. Nf3 {[%clk 0:03:00.9]} 1... d5 {[%clk 0:02:58.7]} 2. b3 {[%clk 0:03:01.5]}
2... Bg4 {[%clk 0:02:54.6]} 3. Bb2 {[%clk 0:03:01.9]} 3... e6 {[%clk 0:02:53.9]}
4. e3 {[%clk 0:02:59.8]} 4... c6 {[%clk 0:02:51.4]} 5. Be2 {[%clk 0:02:59.5]}
5... Nf6 {[%clk 0:02:50.7]} 6. O-O {[%clk 0:02:58.8]} 6... Bd6 {[%clk
0:02:50.9]} 7. Ne5 {[%clk 0:02:58.7]} 7... Bxe2 {[%clk 0:02:48.7]} 8. Qxe2
{[%clk 0:02:59.6]} 8... Nbd7 {[%clk 0:02:48.8]} 9. f4 {[%clk 0:02:58]} 9... O-O
{[%clk 0:02:48]} 10. d3 {[%clk 0:02:57.8]} 10... Ne8 {[%clk 0:02:46.4]} 11. Qg4
{[%clk 0:02:53.1]} 11... f5 {[%clk 0:02:36.5]} 12. Qh3 {[%clk 0:02:50.4]} 12...
Nxe5 {[%clk 0:02:35]} 13. fxe5 {[%clk 0:02:48.8]} 13... Bc5 {[%clk 0:02:34.3]}
14. Nd2 {[%clk 0:02:48.3]} 14... Qg5 {[%clk 0:02:29.7]} 15. Rae1 {[%clk
0:02:47.8]} 15... Bb4 {[%clk 0:02:25]} 16. c3 {[%clk 0:02:46.1]} 16... Bc5
{[%clk 0:02:20.6]} 17. d4 {[%clk 0:02:46]} 17... Be7 {[%clk 0:02:17.2]} 18. Rf3
{[%clk 0:02:40.7]} 18... Qg4 {[%clk 0:01:57.3]} 19. Nf1 {[%clk 0:02:17.9]} 19...
Qxh3 {[%clk 0:01:53.5]} 20. Rxh3 {[%clk 0:02:09.1]} 20... a5 {[%clk 0:01:53.5]}
21. Kf2 {[%clk 0:01:51.1]} 21... a4 {[%clk 0:01:41.7]} 22. b4 {[%clk 0:01:50.8]}
22... Nc7 {[%clk 0:01:38]} 23. Nd2 {[%clk 0:01:45.6]} 23... b5 {[%clk
0:01:35.5]} 24. a3 {[%clk 0:01:40.6]} 24... g5 {[%clk 0:01:26.1]} 25. Rh5 {[%clk
0:01:16.6]} 25... Kg7 {[%clk 0:01:20.1]} 26. g4 {[%clk 0:00:53.1]} 26... fxg4+
{[%clk 0:01:17]} 27. Kg3 {[%clk 0:00:50.8]} 27... Kg6 {[%clk 0:01:08.6]} 28.
Kxg4 {[%clk 0:00:49.8]} 28... Rf2 {[%clk 0:01:08.5]} 29. Bc1 {[%clk 0:00:41.5]}
29... Rg2+ {[%clk 0:00:45.5]} 30. Kf3 {[%clk 0:00:31.3]} 30... Rxd2 {[%clk
0:00:45.3]} 0-1

[Event "*** Titled Tuesday Blitz"]
[Site "Chess.com"]
[Date "2020.05.19"]
[Round "10"]
[White "larisakalinina"]
[Black "Sjakkerntobi"]
[Result "0-1"]
[WhiteElo "2001"]
[BlackElo "2264"]
[TimeControl "180+1"]
[EndTime "13:55:55 PDT"]
[Termination "Sjakkerntobi won on time"]

1. e4 {[%clk 0:03:00.9]} 1... e6 {[%clk 0:02:57.5]} 2. d3 {[%clk 0:02:59.3]}
2... d5 {[%clk 0:02:55.8]} 3. Qe2 {[%clk 0:02:59.7]} 3... Be7 {[%clk 0:02:54]}
4. g3 {[%clk 0:02:57.7]} 4... Nf6 {[%clk 0:02:54]} 5. Bg2 {[%clk 0:02:57.3]}
5... O-O {[%clk 0:02:54.1]} 6. e5 {[%clk 0:02:56.4]} 6... Nfd7 {[%clk
0:02:52.1]} 7. Nf3 {[%clk 0:02:56.6]} 7... c5 {[%clk 0:02:45.7]} 8. O-O {[%clk
0:02:56.3]} 8... Nc6 {[%clk 0:02:44.6]} 9. c4 {[%clk 0:02:52.1]} 9... d4 {[%clk
0:02:41.8]} 10. Re1 {[%clk 0:02:43.1]} 10... Rb8 {[%clk 0:02:29.1]} 11. h4
{[%clk 0:02:28.2]} 11... b6 {[%clk 0:02:13.2]} 12. Nbd2 {[%clk 0:02:24]} 12...
Bb7 {[%clk 0:02:10.3]} 13. Nf1 {[%clk 0:02:22]} 13... Re8 {[%clk 0:02:07.4]} 14.
N1h2 {[%clk 0:02:21.8]} 14... a6 {[%clk 0:01:54.6]} 15. Bg5 {[%clk 0:02:18.5]}
15... Nf8 {[%clk 0:01:52.2]} 16. Ng4 {[%clk 0:02:15.7]} 16... h6 {[%clk
0:01:48.4]} 17. Bxe7 {[%clk 0:01:37.1]} 17... Qxe7 {[%clk 0:01:46.6]} 18. Qd2
{[%clk 0:01:30.3]} 18... Nh7 {[%clk 0:01:42.1]} 19. Kh2 {[%clk 0:01:14.9]} 19...
b5 {[%clk 0:01:35.6]} 20. cxb5 {[%clk 0:01:05]} 20... axb5 {[%clk 0:01:36.5]}
21. Rh1 {[%clk 0:00:57.5]} 21... Red8 {[%clk 0:01:28]} 22. a4 {[%clk 0:00:44.3]}
22... Ba6 {[%clk 0:01:24.7]} 23. Nxh6+ {[%clk 0:00:29.9]} 23... gxh6 {[%clk
0:01:23.7]} 24. Qxh6 {[%clk 0:00:27.9]} 24... Qf8 {[%clk 0:01:23]} 25. Qh5
{[%clk 0:00:19.4]} 25... b4 {[%clk 0:01:22.5]} 26. Ng5 {[%clk 0:00:18.9]} 26...
Qg7 {[%clk 0:01:22.3]} 27. Bxc6 {[%clk 0:00:14.3]} 27... Bxd3 {[%clk 0:01:22]}
28. Be4 {[%clk 0:00:12.2]} 28... Bxe4 {[%clk 0:01:20.4]} 29. Nxe4 {[%clk
0:00:12.5]} 29... c4 {[%clk 0:01:20.1]} 30. Rhd1 {[%clk 0:00:09]} 30... d3
{[%clk 0:01:19.2]} 31. Rac1 {[%clk 0:00:07.3]} 31... Rbc8 {[%clk 0:01:16.3]} 32.
Nd6 {[%clk 0:00:05.4]} 32... Rc5 {[%clk 0:01:13.3]} 33. Rxc4 {[%clk 0:00:02.1]}
33... Rxc4 {[%clk 0:01:12.9]} 34. Nxc4 {[%clk 0:00:01.1]} 34... Nf8 {[%clk
0:01:11.6]} 0-1

[Event "*** Titled Tuesday Blitz"]
[Site "Chess.com"]
[Date "2020.05.19"]
[Round "10"]
[White "AEMEffi"]
[Black "korbul"]
[Result "0-1"]
[WhiteElo "2302"]
[BlackElo "2439"]
[TimeControl "180+1"]
[EndTime "13:55:56 PDT"]
[Termination "korbul won on time"]

1. d4 {[%clk 0:03:00.9]} 1... Nf6 {[%clk 0:02:58.9]} 2. c4 {[%clk 0:03:01.4]}
2... e6 {[%clk 0:02:58.6]} 3. g3 {[%clk 0:03:00.6]} 3... d5 {[%clk 0:02:58]} 4.
Nf3 {[%clk 0:03:00.9]} 4... Be7 {[%clk 0:02:58.1]} 5. Bg2 {[%clk 0:03:01.3]}
5... O-O {[%clk 0:02:58]} 6. O-O {[%clk 0:03:01.8]} 6... c6 {[%clk 0:02:57]} 7.
Qc2 {[%clk 0:03:01.6]} 7... Nbd7 {[%clk 0:02:56.4]} 8. Bf4 {[%clk 0:03:00.8]}
8... b6 {[%clk 0:02:55.1]} 9. Nbd2 {[%clk 0:02:59.8]} 9... Ba6 {[%clk
0:02:54.4]} 10. Rfe1 {[%clk 0:02:57.3]} 10... Nh5 {[%clk 0:02:41.2]} 11. e4
{[%clk 0:02:51.5]} 11... Nxf4 {[%clk 0:02:39.3]} 12. gxf4 {[%clk 0:02:51.6]}
12... dxe4 {[%clk 0:02:38.8]} 13. Nxe4 {[%clk 0:02:52.5]} 13... Bb7 {[%clk
0:02:32.1]} 14. Rad1 {[%clk 0:02:48]} 14... Nf6 {[%clk 0:02:30.7]} 15. Ne5
{[%clk 0:02:31.3]} 15... Qc7 {[%clk 0:02:29.9]} 16. Nxf6+ {[%clk 0:02:01.9]}
16... Bxf6 {[%clk 0:02:26.7]} 17. c5 {[%clk 0:02:01.9]} 17... Rac8 {[%clk
0:02:17.2]} 18. f5 {[%clk 0:01:52]} 18... exf5 {[%clk 0:02:13]} 19. Qxf5 {[%clk
0:01:50.4]} 19... Bxe5 {[%clk 0:02:07.3]} 20. dxe5 {[%clk 0:01:40.3]} 20... bxc5
{[%clk 0:02:04.8]} 21. Rd7 {[%clk 0:01:39.7]} 21... Qa5 {[%clk 0:02:00.9]} 22.
Red1 {[%clk 0:01:38.1]} 22... Rcd8 {[%clk 0:01:53.4]} 23. e6 {[%clk 0:01:35.8]}
23... Rxd7 {[%clk 0:01:33.9]} 24. exd7 {[%clk 0:01:36.7]} 24... Qb6 {[%clk
0:01:20.2]} 25. Qg5 {[%clk 0:00:59.7]} 25... Qd8 {[%clk 0:01:14.3]} 26. Qxc5
{[%clk 0:00:58.7]} 26... g6 {[%clk 0:01:09.4]} 27. Qxa7 {[%clk 0:00:50.8]} 27...
Ba8 {[%clk 0:01:07.3]} 28. a4 {[%clk 0:00:42.5]} 28... Qg5 {[%clk 0:01:01.7]}
29. Qb6 {[%clk 0:00:30.8]} 29... c5 {[%clk 0:00:57.3]} 0-1

[Event "*** Titled Tuesday Blitz"]
[Site "Chess.com"]
[Date "2020.05.19"]
[Round "10"]
[White "floplover"]
[Black "j2806"]
[Result "1-0"]
[WhiteElo "2298"]
[BlackElo "2033"]
[TimeControl "180+1"]
[EndTime "13:55:56 PDT"]
[Termination "floplover won by checkmate"]

1. d4 {[%clk 0:03:00.9]} 1... Nf6 {[%clk 0:02:50]} 2. c4 {[%clk 0:03:01.1]} 2...
e6 {[%clk 0:02:48]} 3. Nc3 {[%clk 0:03:01.4]} 3... d5 {[%clk 0:02:48.2]} 4. Nf3
{[%clk 0:03:00.8]} 4... Be7 {[%clk 0:02:48.3]} 5. Bf4 {[%clk 0:03:00.6]} 5...
O-O {[%clk 0:02:47.3]} 6. e3 {[%clk 0:03:01]} 6... a6 {[%clk 0:02:45]} 7. Rc1
{[%clk 0:02:56.5]} 7... Nbd7 {[%clk 0:02:44.4]} 8. c5 {[%clk 0:02:54]} 8... c6
{[%clk 0:02:43.8]} 9. h3 {[%clk 0:02:51.7]} 9... b6 {[%clk 0:02:34]} 10. b4
{[%clk 0:02:28.6]} 10... a5 {[%clk 0:02:33.4]} 11. a3 {[%clk 0:02:28.7]} 11...
Ne4 {[%clk 0:02:12.6]} 12. Nxe4 {[%clk 0:01:59.7]} 12... dxe4 {[%clk 0:02:11.9]}
13. Nd2 {[%clk 0:02:00]} 13... f5 {[%clk 0:02:10.9]} 14. Nc4 {[%clk 0:01:50.8]}
14... axb4 {[%clk 0:02:07.6]} 15. axb4 {[%clk 0:01:50]} 15... bxc5 {[%clk
0:02:07.5]} 16. bxc5 {[%clk 0:01:49.9]} 16... Bf6 {[%clk 0:02:02.5]} 17. Be2
{[%clk 0:01:42.7]} 17... Ba6 {[%clk 0:01:55]} 18. O-O {[%clk 0:01:41.4]} 18...
Re8 {[%clk 0:01:46]} 19. Nd6 {[%clk 0:01:33]} 19... Re7 {[%clk 0:01:35.5]} 20.
Bxa6 {[%clk 0:01:30]} 20... Rxa6 {[%clk 0:01:34.3]} 21. Qb3 {[%clk 0:01:30.5]}
21... Kf8 {[%clk 0:01:22.2]} 22. Qb7 {[%clk 0:00:44.2]} 22... Qa8 {[%clk
0:01:13.9]} 23. Rb1 {[%clk 0:00:40.3]} 23... e5 {[%clk 0:01:03.8]} 24. dxe5
{[%clk 0:00:28.9]} 24... Nxe5 {[%clk 0:01:00.5]} 25. Qb3 {[%clk 0:00:19.2]}
25... Raa7 {[%clk 0:00:55.7]} 26. Qb8+ {[%clk 0:00:17.3]} 26... Qxb8 {[%clk
0:00:40.2]} 27. Rxb8+ {[%clk 0:00:16.9]} 27... Re8 {[%clk 0:00:34.3]} 28. Rxe8#
{[%clk 0:00:17.8]} 1-0

[Event "*** Titled Tuesday Blitz"]
[Site "Chess.com"]
[Date "2020.05.19"]
[Round "10"]
[White "UmutErdemGunduz"]
[Black "1977Ivan"]
[Result "1-0"]
[WhiteElo "2496"]
[BlackElo "2626"]
[TimeControl "180+1"]
[EndTime "13:55:57 PDT"]
[Termination "UmutErdemGunduz won by resignation"]

1. e4 {[%clk 0:03:00.9]} 1... c5 {[%clk 0:02:59.4]} 2. Nf3 {[%clk 0:03:00.2]}
2... e6 {[%clk 0:03:00]} 3. d4 {[%clk 0:03:00.7]} 3... cxd4 {[%clk 0:03:00.9]}
4. Nxd4 {[%clk 0:03:01.2]} 4... Nc6 {[%clk 0:03:01.3]} 5. Nc3 {[%clk 0:03:01.5]}
5... Qc7 {[%clk 0:03:01.5]} 6. Be3 {[%clk 0:03:00.4]} 6... a6 {[%clk 0:03:01.7]}
7. a3 {[%clk 0:03:00.3]} 7... b5 {[%clk 0:03:00.3]} 8. f4 {[%clk 0:02:48.5]}
8... Bb7 {[%clk 0:02:59.4]} 9. Qe2 {[%clk 0:02:45.6]} 9... Nxd4 {[%clk
0:02:54.5]} 10. Bxd4 {[%clk 0:02:42.1]} 10... Qxf4 {[%clk 0:02:55]} 11. g3
{[%clk 0:02:41.4]} 11... Qc7 {[%clk 0:02:52.8]} 12. Bg2 {[%clk 0:02:40.8]} 12...
Ne7 {[%clk 0:02:39.3]} 13. O-O {[%clk 0:02:38.9]} 13... Nc6 {[%clk 0:02:30.4]}
14. Nd5 {[%clk 0:02:30.3]} 14... Qd6 {[%clk 0:02:16.8]} 15. Bc3 {[%clk
0:02:04.3]} 15... Qc5+ {[%clk 0:02:09.6]} 16. Kh1 {[%clk 0:02:02.3]} 16... exd5
{[%clk 0:01:52.1]} 17. exd5+ {[%clk 0:02:00.4]} 17... Ne7 {[%clk 0:01:49.1]} 18.
d6 {[%clk 0:01:57.7]} 18... Bxg2+ {[%clk 0:01:47.8]} 19. Qxg2 {[%clk 0:01:58.6]}
19... Qc6 {[%clk 0:01:43.6]} 20. Rae1 {[%clk 0:01:41.4]} 20... Ra7 {[%clk
0:00:58.5]} 21. Bxg7 {[%clk 0:01:24.3]} 21... Qxg2+ {[%clk 0:00:56.7]} 22. Kxg2
{[%clk 0:01:23.5]} 22... Bxg7 {[%clk 0:00:56.9]} 23. Rxe7+ {[%clk 0:01:22.6]}
23... Kd8 {[%clk 0:00:57]} 24. Rexf7 {[%clk 0:01:11]} 24... Bh6 {[%clk
0:00:21.4]} 25. R1f6 {[%clk 0:01:09.8]} 25... b4 {[%clk 0:00:21.7]} 26. axb4
{[%clk 0:01:04.6]} 26... Rb7 {[%clk 0:00:21.9]} 27. Rxh6 {[%clk 0:00:55.8]}
27... Rxb4 {[%clk 0:00:21]} 28. b3 {[%clk 0:00:56.3]} 28... Rd4 {[%clk
0:00:19.9]} 29. Rhxh7 {[%clk 0:00:51.5]} 29... Re8 {[%clk 0:00:17.9]} 30. Rxd7+
{[%clk 0:00:51.9]} 30... Kc8 {[%clk 0:00:17.8]} 31. Ra7 {[%clk 0:00:49.6]} 31...
Kb8 {[%clk 0:00:16.7]} 32. Rhb7+ {[%clk 0:00:49]} 32... Kc8 {[%clk 0:00:17]} 33.
d7+ {[%clk 0:00:49.9]} 1-0

[Event "*** Titled Tuesday Blitz"]
[Site "Chess.com"]
[Date "2020.05.19"]
[Round "10"]
[White "Gvetadze"]
[Black "1g41-0"]
[Result "1-0"]
[WhiteElo "2414"]
[BlackElo "2503"]
[TimeControl "180+1"]
[EndTime "13:55:57 PDT"]
[Termination "Gvetadze won by resignation"]

1. Nf3 {[%clk 0:03:00.9]} 1... Nf6 {[%clk 0:02:58.7]} 2. g3 {[%clk 0:03:01.8]}
2... g6 {[%clk 0:02:56.6]} 3. Bg2 {[%clk 0:03:02.7]} 3... Bg7 {[%clk 0:02:56.3]}
4. O-O {[%clk 0:03:01.8]} 4... O-O {[%clk 0:02:57.2]} 5. d3 {[%clk 0:03:01.6]}
5... d6 {[%clk 0:02:57.8]} 6. Nc3 {[%clk 0:03:01.2]} 6... Nc6 {[%clk 0:02:56.6]}
7. e4 {[%clk 0:03:01.3]} 7... e5 {[%clk 0:02:53.4]} 8. h3 {[%clk 0:03:01.4]}
8... h6 {[%clk 0:02:50.9]} 9. Be3 {[%clk 0:03:01.2]} 9... a6 {[%clk 0:02:42.9]}
10. Qd2 {[%clk 0:03:00.9]} 10... Kh7 {[%clk 0:02:42.1]} 11. Nh4 {[%clk
0:03:00.3]} 11... Bd7 {[%clk 0:02:30.1]} 12. f4 {[%clk 0:02:59.9]} 12... Nh5
{[%clk 0:02:25.5]} 13. Qf2 {[%clk 0:02:41.5]} 13... exf4 {[%clk 0:02:15.8]} 14.
gxf4 {[%clk 0:02:39.5]} 14... Qf6 {[%clk 0:01:54]} 15. Nd5 {[%clk 0:02:34.3]}
15... Qxb2 {[%clk 0:01:52.1]} 16. Nxc7 {[%clk 0:02:27.1]} 16... Rac8 {[%clk
0:01:48.6]} 17. Rab1 {[%clk 0:02:26.4]} 17... Qxa2 {[%clk 0:01:47.2]} 18. Rxb7
{[%clk 0:02:25.6]} 18... Na5 {[%clk 0:01:46.8]} 19. Ra7 {[%clk 0:02:23.2]} 19...
Nc6 {[%clk 0:01:43.2]} 20. Rb7 {[%clk 0:02:22]} 20... Rb8 {[%clk 0:01:37.1]} 21.
Rxb8 {[%clk 0:02:19.4]} 21... Rxb8 {[%clk 0:01:38]} 22. f5 {[%clk 0:02:13.6]}
22... Rb2 {[%clk 0:01:30.8]} 23. fxg6+ {[%clk 0:02:13.2]} 23... fxg6 {[%clk
0:01:31.7]} 24. Qf7 {[%clk 0:02:11.7]} 24... Qxf7 {[%clk 0:01:31.5]} 25. Rxf7
{[%clk 0:02:11.1]} 25... Ne5 {[%clk 0:01:31.6]} 26. Re7 {[%clk 0:02:06.4]} 26...
Rxc2 {[%clk 0:01:26]} 27. Nd5 {[%clk 0:02:00.6]} 27... a5 {[%clk 0:01:13.7]} 28.
d4 {[%clk 0:01:55.3]} 28... a4 {[%clk 0:01:06.4]} 29. dxe5 {[%clk 0:01:54.2]}
29... a3 {[%clk 0:00:54.3]} 30. Rxd7 {[%clk 0:01:46.7]} 30... a2 {[%clk
0:00:54.5]} 31. Ra7 {[%clk 0:01:46]} 31... dxe5 {[%clk 0:00:53.5]} 32. Bf3
{[%clk 0:01:39.7]} 32... Kg8 {[%clk 0:00:49.1]} 33. Nxg6 {[%clk 0:01:30.6]}
33... Nf4 {[%clk 0:00:41.6]} 34. Nge7+ {[%clk 0:01:27.3]} 34... Kf8 {[%clk
0:00:38.6]} 35. Nf5 {[%clk 0:01:17.7]} 35... Nxd5 {[%clk 0:00:36.6]} 36. exd5
{[%clk 0:01:13.9]} 36... e4 {[%clk 0:00:36.9]} 37. Nxg7 {[%clk 0:01:12.6]} 37...
exf3 {[%clk 0:00:37.4]} 38. Ne6+ {[%clk 0:01:10.6]} 38... Kg8 {[%clk 0:00:32.7]}
39. Bd4 {[%clk 0:01:06.8]} 39... f2+ {[%clk 0:00:22.1]} 40. Kg2 {[%clk
0:01:02.5]} 1-0

[Event "*** Titled Tuesday Blitz"]
[Site "Chess.com"]
[Date "2020.05.19"]
[Round "10"]
[White "RaunakSadhwani2005"]
[Black "Spartakus1975"]
[Result "1-0"]
[WhiteElo "2808"]
[BlackElo "2691"]
[TimeControl "180+1"]
[EndTime "13:55:58 PDT"]
[Termination "RaunakSadhwani2005 won by resignation"]

1. e4 {[%clk 0:03:00.9]} 1... e6 {[%clk 0:02:59.6]} 2. d4 {[%clk 0:03:00.8]}
2... d5 {[%clk 0:02:59.5]} 3. Nc3 {[%clk 0:03:01.4]} 3... Nf6 {[%clk 0:02:57.9]}
4. exd5 {[%clk 0:03:01]} 4... exd5 {[%clk 0:02:57.7]} 5. Bd3 {[%clk 0:03:00.9]}
5... Bb4 {[%clk 0:02:49.5]} 6. a3 {[%clk 0:03:00.3]} 6... Bxc3+ {[%clk 0:02:49]}
7. bxc3 {[%clk 0:03:01.2]} 7... O-O {[%clk 0:02:49.1]} 8. Ne2 {[%clk 0:02:52.7]}
8... c5 {[%clk 0:02:44.4]} 9. dxc5 {[%clk 0:02:48.1]} 9... Nbd7 {[%clk
0:02:44.2]} 10. Be3 {[%clk 0:02:47.9]} 10... Qc7 {[%clk 0:02:39.2]} 11. O-O
{[%clk 0:02:47.9]} 11... Nxc5 {[%clk 0:02:38.7]} 12. a4 {[%clk 0:02:47.6]} 12...
Bd7 {[%clk 0:02:29.8]} 13. Bd4 {[%clk 0:02:44.1]} 13... Nfe4 {[%clk 0:02:26.8]}
14. f3 {[%clk 0:02:40.3]} 14... Ng5 {[%clk 0:02:23.4]} 15. Ng3 {[%clk
0:02:36.4]} 15... Nxa4 {[%clk 0:02:12.7]} 16. f4 {[%clk 0:02:23.5]} 16... Ne4
{[%clk 0:01:59.4]} 17. Bxe4 {[%clk 0:02:19.7]} 17... dxe4 {[%clk 0:01:59.1]} 18.
f5 {[%clk 0:02:18.9]} 18... f6 {[%clk 0:01:53.6]} 19. Qg4 {[%clk 0:02:12.9]}
19... Kh8 {[%clk 0:01:25.6]} 20. Nh5 {[%clk 0:02:12.1]} 20... Bb5 {[%clk
0:01:15.5]} 21. Rfe1 {[%clk 0:01:54.6]} 21... Rae8 {[%clk 0:00:59]} 22. Nf4
{[%clk 0:01:54.2]} 22... Nxc3 {[%clk 0:00:55.1]} 23. Ng6+ {[%clk 0:01:43]} 23...
Kg8 {[%clk 0:00:41.9]} 24. Nxf8 {[%clk 0:01:42.3]} 24... Kxf8 {[%clk 0:00:38.4]}
25. Ra3 {[%clk 0:01:33.8]} 25... Nd5 {[%clk 0:00:37]} 26. Rh3 {[%clk 0:01:30.2]}
26... h6 {[%clk 0:00:34.6]} 27. c3 {[%clk 0:01:30.4]} 27... Bc6 {[%clk
0:00:30.2]} 28. Bc5+ {[%clk 0:01:19.1]} 28... Kg8 {[%clk 0:00:26.9]} 29. Rxh6
{[%clk 0:01:16.9]} 29... Qf4 {[%clk 0:00:26.7]} 30. Rg6 {[%clk 0:01:06.7]} 30...
Qxg4 {[%clk 0:00:23.9]} 31. Rxg4 {[%clk 0:01:07.6]} 31... Nxc3 {[%clk
0:00:23.7]} 32. Bd4 {[%clk 0:01:07.6]} 32... Nb5 {[%clk 0:00:23.3]} 33. Bxf6
{[%clk 0:01:07.2]} 33... Kf7 {[%clk 0:00:21.8]} 34. Bb2 {[%clk 0:01:07.1]} 34...
a5 {[%clk 0:00:21.3]} 35. Rxg7+ {[%clk 0:01:06.6]} 35... Kf8 {[%clk 0:00:21.9]}
36. Re3 {[%clk 0:01:07.1]} 36... Re7 {[%clk 0:00:17.9]} 37. f6 {[%clk 0:01:07]}
37... Rxg7 {[%clk 0:00:16.4]} 38. fxg7+ {[%clk 0:01:07.9]} 38... Kg8 {[%clk
0:00:16.9]} 39. Rh3 {[%clk 0:01:08.5]} 1-0

[Event "*** Titled Tuesday Blitz"]
[Site "Chess.com"]
[Date "2020.05.19"]
[Round "10"]
[White "WildBizon"]
[Black "Gloomy_Wanderer"]
[Result "1-0"]
[WhiteElo "2656"]
[BlackElo "2754"]
[TimeControl "180+1"]
[EndTime "13:56:01 PDT"]
[Termination "WildBizon won by resignation"]

1. e4 {[%clk 0:03:00.9]} 1... c5 {[%clk 0:03:00.1]} 2. Nf3 {[%clk 0:03:00.8]}
2... a6 {[%clk 0:03:00.4]} 3. c3 {[%clk 0:03:00.6]} 3... d5 {[%clk 0:03:00.3]}
4. exd5 {[%clk 0:03:00.7]} 4... Qxd5 {[%clk 0:03:01.2]} 5. d4 {[%clk 0:03:00.5]}
5... Bg4 {[%clk 0:03:01.8]} 6. Be2 {[%clk 0:03:00.1]} 6... e6 {[%clk 0:03:02.2]}
7. h3 {[%clk 0:02:57.4]} 7... Bh5 {[%clk 0:03:01.8]} 8. O-O {[%clk 0:02:56.9]}
8... Nf6 {[%clk 0:03:01.5]} 9. Be3 {[%clk 0:02:56.1]} 9... cxd4 {[%clk
0:03:01.4]} 10. Nxd4 {[%clk 0:02:54.9]} 10... Bxe2 {[%clk 0:03:00.7]} 11. Qxe2
{[%clk 0:02:55]} 11... Nc6 {[%clk 0:03:00.4]} 12. Nf3 {[%clk 0:02:53.7]} 12...
Be7 {[%clk 0:02:54.9]} 13. c4 {[%clk 0:02:53.2]} 13... Qh5 {[%clk 0:02:54.5]}
14. Nc3 {[%clk 0:02:53]} 14... O-O {[%clk 0:02:53.9]} 15. Rad1 {[%clk
0:02:52.7]} 15... Rac8 {[%clk 0:02:53.9]} 16. b3 {[%clk 0:02:48.2]} 16... Bc5
{[%clk 0:02:30.7]} 17. Bg5 {[%clk 0:02:40.9]} 17... Nd4 {[%clk 0:02:25.9]} 18.
Nxd4 {[%clk 0:01:56.6]} 18... Qxg5 {[%clk 0:02:22.4]} 19. Na4 {[%clk 0:01:55.4]}
19... Ba7 {[%clk 0:02:16.1]} 20. Nf3 {[%clk 0:01:55]} 20... Qf5 {[%clk
0:02:14.4]} 21. g4 {[%clk 0:01:46.6]} 21... Qf4 {[%clk 0:02:02.7]} 22. Kg2
{[%clk 0:01:43.9]} 22... Rfd8 {[%clk 0:01:59.1]} 23. Qe5 {[%clk 0:01:41.5]}
23... Qxe5 {[%clk 0:01:38.7]} 24. Nxe5 {[%clk 0:01:42.4]} 24... b5 {[%clk
0:01:33.4]} 25. cxb5 {[%clk 0:01:30]} 25... axb5 {[%clk 0:01:28.1]} 26. Rxd8+
{[%clk 0:01:21.2]} 26... Rxd8 {[%clk 0:01:27.8]} 27. Nc6 {[%clk 0:01:21.5]}
27... Rd7 {[%clk 0:01:27.5]} 28. Nc3 {[%clk 0:01:21.4]} 28... b4 {[%clk
0:01:03]} 29. Nxb4 {[%clk 0:01:17.4]} 29... Rd2 {[%clk 0:01:02.9]} 30. g5 {[%clk
0:01:12.5]} 30... Nd7 {[%clk 0:01:01]} 31. Nc6 {[%clk 0:00:59.6]} 31... Bc5
{[%clk 0:00:51.5]} 32. Ne4 {[%clk 0:00:59.5]} 32... Rd5 {[%clk 0:00:49.7]} 33.
f4 {[%clk 0:00:57.1]} 33... Bf8 {[%clk 0:00:44.8]} 34. a4 {[%clk 0:00:50.9]}
34... Nc5 {[%clk 0:00:44.4]} 35. Nxc5 {[%clk 0:00:50.2]} 35... Rxc5 {[%clk
0:00:45.3]} 36. Ne5 {[%clk 0:00:49.7]} 36... h6 {[%clk 0:00:37.1]} 37. gxh6
{[%clk 0:00:46.5]} 37... gxh6 {[%clk 0:00:37.2]} 38. Nd7 {[%clk 0:00:46.7]} 1-0